bitfinex/quotes_BTCUSD_20250522
["timestamp","ask_amount","ask_price","bid_price","bid_amount"]
[1747920959894,0.19091587,111250.0,111240.0,1.35364556]
[1747920960146,0.19091587,111250.0,111240.0,1.533437]
[1747920960364,0.19091587,111250.0,111240.0,1.55141573]
[1747920960574,0.19391587,111250.0,111240.0,1.54242641]
[1747920960816,0.19391587,111250.0,111240.0,1.16364556]
[1747920961023,0.19391587,111250.0,111240.0,1.21364556]
[1747920961263,0.19391587,111250.0,111240.0,1.393437]
[1747920961478,0.19391587,111250.0,111240.0,1.40242657]
[1747920961696,0.01997324,111270.0,111260.0,0.54672201]
[1747920961910,0.19971668,111270.0,111260.0,4.25006312]
[1747920962166,0.19775224,111250.0,111240.0,0.19419768]
[1747920962390,0.19775224,111250.0,111240.0,0.83000556]
[1747920962606,0.19775224,111250.0,111240.0,0.72486]
[1747920963038,0.21935224,111250.0,111240.0,0.38816]
[1747920963247,0.3088978,111250.0,111240.0,0.38816]
[1747920963491,0.3302978,111250.0,111240.0,0.38816]
[1747920963723,0.3088978,111250.0,111240.0,0.38816]
[1747920963951,0.19875224,111250.0,111240.0,4.118464]
[1747920964162,0.19875224,111250.0,111240.0,0.38816]
[1747920964373,0.24225224,111250.0,111240.0,0.38816]
[1747920964619,0.01897696,111250.0,111240.0,4.64724485]
[1747920964864,0.20774092,111250.0,111240.0,4.63825544]
[1747920965097,0.19875256,111250.0,111240.0,0.72816]
[1747920965303,0.33009812,111250.0,111240.0,0.38816]
[1747920965519,0.38008525,111250.0,111240.0,0.38816]
[1747920965739,0.23868778,111230.0,111220.0,0.002]
[1747920965971,0.32823334,111230.0,111220.0,0.00215199]
[1747920967235,0.21818778,111230.0,111220.0,0.00415199]
[1747920967480,0.19778778,111230.0,111220.0,3.73445599]
[1747920967695,0.206778,111230.0,111220.0,4.07445599]
[1747920967902,0.206778,111230.0,111220.0,1.34455788]
[1747920968109,0.02697023,111230.0,111220.0,0.80193936]
[1747920968322,0.18823057,111250.0,111230.0,0.54676226]
[1747920968578,0.01797808,111240.0,111230.0,0.53777245]
[1747920968810,0.20675949,111240.0,111230.0,4.070304]
[1747920969654,0.18879781,111230.0,111220.0,0.05215199]
[1747920970102,0.23129781,111230.0,111220.0,0.00215199]
[1747920971205,0.20939781,111230.0,111220.0,0.00215199]
[1747920971424,0.32034337,111230.0,111220.0,0.00215199]
[1747920972283,0.19778794,111230.0,111220.0,0.00215199]
[1747920972517,0.19878794,111230.0,111220.0,0.25465199]
[1747920973436,0.19778794,111230.0,111220.0,0.00215199]
[1747920973657,0.3295335,111230.0,111220.0,0.00215199]
[1747920975253,0.3305335,111230.0,111220.0,0.00215199]
[1747920976166,0.34607435,111230.0,111220.0,0.00215199]
[1747920976418,0.24152336,111210.0,111200.0,0.39008]
[1747920976637,0.33106892,111210.0,111200.0,0.39008]
[1747920978189,0.33106892,111210.0,111200.0,0.002]
[1747920978441,0.24105895,111190.0,111180.0,0.002]
[1747920978700,0.33060451,111190.0,111180.0,0.00215202]
[1747920978926,0.69514536,111190.0,111180.0,0.00215202]
[1747920979145,0.78364692,111190.0,111180.0,0.00215202]
[1747920979378,0.17995321,111140.0,111130.0,0.07215333]
[1747920979620,0.17995321,111140.0,111130.0,2.73120543]
[1747920979853,0.17995321,111140.0,111130.0,0.07230543]
[1747920980547,0.31159877,111140.0,111130.0,0.0001521]
[1747920980781,0.36075377,111140.0,111130.0,0.00849364]
[1747920981228,0.31159877,111140.0,111130.0,0.00849364]
[1747920981889,0.31159877,111140.0,111130.0,0.01149364]
[1747920982110,0.33070741,111140.0,111130.0,0.00849364]
[1747920982539,0.33170741,111140.0,111130.0,0.00849364]
[1747920983693,0.37225736,111140.0,111130.0,0.0001521]
[1747920984130,0.72679821,111140.0,111130.0,0.0001521]
[1747920984883,0.5389677,111130.0,111120.0,0.002]
[1747920985133,1.16395707,111130.0,111120.0,0.00250713]
[1747920985360,0.57522556,111120.0,111110.0,4e-05]
[1747920985591,0.67477112,111120.0,111110.0,4e-05]
[1747920986521,0.66477112,111120.0,111110.0,4e-05]
[1747920986756,0.32477112,111120.0,111110.0,4e-05]
[1747920987469,1.17861493,111120.0,111110.0,4e-05]
[1747920987709,1.25813644,111120.0,111110.0,4e-05]
[1747920987946,0.41429263,111120.0,111110.0,4e-05]
[1747920988184,0.32477112,111120.0,111110.0,4e-05]
[1747920988410,0.32777112,111120.0,111110.0,4e-05]
[1747920989377,0.23160172,111110.0,111100.0,0.002]
[1747920989631,0.33568813,111110.0,111100.0,0.002]
[1747920990387,0.3875555,111110.0,111100.0,0.002]
[1747920991515,0.33768813,111110.0,111100.0,0.002]
[1747920992020,0.33768813,111110.0,111080.0,0.002]
[1747920992021,0.25607789,111090.0,111080.0,0.002]
[1747920992255,0.69562345,111090.0,111080.0,0.002]
[1747920993446,0.69562345,111090.0,111080.0,0.00215217]
[1747920993903,0.70869667,111090.0,111080.0,0.00215217]
[1747920994113,0.71869667,111090.0,111080.0,0.00215217]
[1747920994361,0.36869667,111090.0,111080.0,0.00215217]
[1747920994700,0.37369667,111090.0,111080.0,0.00215217]
[1747920994930,1.21754048,111090.0,111080.0,0.00215217]
[1747920995143,0.80321818,111090.0,111080.0,0.00215217]
[1747920995565,0.81321818,111090.0,111080.0,0.00215217]
[1747920995800,0.81321818,111090.0,111060.0,0.002]
[1747920995801,0.25581355,111070.0,111060.0,0.002]
[1747920996038,1.18920292,111070.0,111060.0,0.002]
[1747920996257,0.78488062,111070.0,111060.0,0.002]
[1747920996726,0.80398926,111070.0,111060.0,0.002]
[1747920997428,1.09889304,111050.0,111020.0,0.07415333]
[1747920997647,1.1984386,111050.0,111040.0,0.0021522]
[1747920997865,1.1984386,111050.0,111020.0,0.002]
[1747920997866,0.59318491,111030.0,111020.0,0.002]
[1747920998099,0.68273047,111030.0,111020.0,0.002]
[1747920998330,1.19657428,111030.0,111020.0,0.002]
[1747920999470,1.18657428,111030.0,111020.0,0.002]
[1747920999701,0.78225198,111030.0,111020.0,0.002]
[1747921000355,0.78074471,111030.0,111020.0,0.002]
[1747921000807,1.29458852,111030.0,111020.0,0.002]
[1747921001027,1.29458852,111030.0,111020.0,0.003]
[1747921001652,0.79074471,111030.0,111020.0,0.003]
[1747921002269,0.80074471,111030.0,111020.0,0.003]
[1747921002733,0.79074471,111030.0,111020.0,0.003]
[1747921003012,0.27382061,111010.0,111000.0,0.022]
[1747921003204,0.27382061,111010.0,111000.0,0.02215211]
[1747921003205,0.43276443,111010.0,111000.0,0.02215211]
[1747921003674,0.76276443,111010.0,111000.0,0.02215211]
[1747921003893,0.68336617,111010.0,111000.0,0.02215211]
[1747921004792,1.13516366,111010.0,111000.0,0.02215211]
[1747921005016,1.15516366,111010.0,111000.0,0.02215211]
[1747921005681,1.17415968,111010.0,111000.0,0.02215211]
[1747921005946,1.26368119,111010.0,111000.0,0.02215211]
[1747921006167,1.69547868,111010.0,111000.0,0.02215211]
[1747921006383,1.69547868,111010.0,110980.0,0.002]
[1747921006384,0.70895381,110990.0,110980.0,0.002]
[1747921006606,0.79849937,110990.0,110980.0,0.00250741]
[1747921007551,0.34670188,110990.0,110980.0,0.00250741]
[1747921007768,0.88802088,110990.0,110980.0,0.00250741]
[1747921007981,0.90703198,110990.0,110980.0,0.00250741]
[1747921008200,0.91703198,110990.0,110980.0,0.00250741]
[1747921008648,0.94113978,110990.0,110980.0,0.00250741]
[1747921008885,1.25703198,110990.0,110980.0,0.00250741]
[1747921009119,1.28313978,110990.0,110980.0,0.00250741]
[1747921009383,0.60729205,110970.0,110960.0,0.002]
[1747921009615,1.27617749,110970.0,110960.0,0.002]
[1747921009841,1.25149479,110970.0,110960.0,0.002]
[1747921010050,0.7855895,110970.0,110960.0,0.002]
[1747921010267,0.77929703,110970.0,110960.0,0.002]
[1747921010495,0.68683761,110970.0,110960.0,0.002]
[1747921010741,0.64233761,110970.0,110960.0,0.002]
[1747921011244,0.30233761,110970.0,110960.0,0.002]
[1747921011692,1.1358351,110970.0,110960.0,0.002]
[1747921011926,1.2423251,110970.0,110960.0,0.002]
[1747921012163,1.33184661,110970.0,110960.0,0.002]
[1747921012390,1.34184661,110970.0,110960.0,0.002]
[1747921012825,1.6281765,110970.0,110960.0,0.002]
[1747921013055,0.55286353,110930.0,110920.0,0.002]
[1747921013333,0.64240909,110930.0,110920.0,0.002]
[1747921013782,0.72467921,110930.0,110920.0,0.002]
[1747921014013,0.8830845,110930.0,110920.0,0.002]
[1747921014248,0.8804767,110930.0,110920.0,0.002]
[1747921014480,0.8804767,110930.0,110900.0,0.002]
[1747921014481,1.04869679,110910.0,110900.0,0.002]
[1747921014708,0.77596637,110910.0,110900.0,0.00215237]
[1747921015167,0.78596637,110910.0,110900.0,0.00215237]
[1747921015395,0.68644486,110910.0,110900.0,0.00215237]
[1747921015633,0.66494486,110910.0,110900.0,0.00215237]
[1747921015901,0.64244486,110910.0,110900.0,0.00215237]
[1747921016140,0.32496208,110910.0,110900.0,0.01045283]
[1747921016371,0.66496208,110910.0,110900.0,0.01045283]
[1747921016593,0.74949074,110910.0,110900.0,0.01045283]
[1747921016825,0.74949074,110910.0,110900.0,0.00215237]
[1747921017045,0.66496208,110910.0,110900.0,0.00215237]
[1747921017476,0.66696208,110910.0,110900.0,0.00215237]
[1747921017686,0.64444486,110910.0,110900.0,0.00215237]
[1747921017929,0.64444486,110910.0,110900.0,0.65459237]
[1747921017930,0.19835845,110910.0,110900.0,0.65459237]
[1747921018156,0.19835845,110910.0,110900.0,5.47145637]
[1747921018157,0.19935845,110910.0,110900.0,5.47145637]
[1747921018408,0.03703274,110920.0,110910.0,0.20737436]
[1747921018596,0.22635829,110920.0,110910.0,0.9019]
[1747921018833,0.21734336,110920.0,110910.0,1.47036]
[1747921019056,0.30688892,110920.0,110910.0,1.74889598]
[1747921019495,0.20735623,110920.0,110910.0,1.74889598]
[1747921019719,0.02704537,110920.0,110910.0,4.25317034]
[1747921019958,0.00901347,110940.0,110930.0,0.39331428]
[1747921020193,0.01101266,110950.0,110940.0,0.1983048]
[1747921020431,0.02002507,110950.0,110940.0,4.2866355]
[1747921020662,0.02002507,110950.0,110940.0,4.42048106]
[1747921020885,0.02002507,110950.0,110940.0,4.42877704]
[1747921021147,0.18230541,110990.0,110960.0,0.0435]
[1747921021363,0.00900998,110980.0,110970.0,5.2321082]
[1747921021578,0.20072107,110990.0,110980.0,0.3837]
[1747921021800,0.20072107,110990.0,110980.0,4.114004]
[1747921022025,0.18223931,111010.0,110990.0,0.20722513]
[1747921022282,0.19132376,111010.0,111000.0,4.112704]
[1747921022501,0.20033171,111010.0,111000.0,4.382944]
[1747921022731,0.20033171,111010.0,111000.0,4.56312418]
[1747921022957,0.28987727,111010.0,111000.0,5.080224]
[1747921023188,0.28987727,111010.0,111000.0,1.30752]
[1747921024294,0.20033171,111010.0,111000.0,1.30752]
[1747921024511,0.20033171,111010.0,111000.0,1.35152]
[1747921025163,0.20033171,111010.0,111000.0,1.35144]
[1747921025406,0.20033171,111010.0,111000.0,1.54963762]
[1747921025641,0.01115934,111010.0,111000.0,5.27994162]
[1747921025872,0.01115934,111010.0,111000.0,5.28695006]
[1747921025873,0.00215163,111010.0,111000.0,5.28695006]
[1747921026118,0.02001208,111030.0,111020.0,0.24956889]
[1747921026346,0.02001208,111030.0,111020.0,4.36883289]
[1747921026347,0.04703114,111030.0,111020.0,4.36883289]
[1747921026575,0.18219151,111050.0,111020.0,4.70883297]
[1747921026807,0.02016106,111050.0,111040.0,0.55613717]
[1747921027046,0.2002606,111050.0,111040.0,1.46236]
[1747921027494,0.00215222,111050.0,111040.0,1.77357798]
[1747921027729,0.01115644,111050.0,111040.0,1.77357798]
[1747921027957,0.18217897,111070.0,111060.0,0.382]
[1747921028176,0.27172453,111070.0,111060.0,1.30728]
[1747921028395,0.01800933,111050.0,111040.0,0.0247]
[1747921028714,0.19810838,111050.0,111040.0,0.97128]
[1747921028893,0.28765394,111050.0,111040.0,0.27412]
[1747921029120,0.28765394,111050.0,111040.0,0.004]
[1747921030024,0.30219479,111050.0,111040.0,0.004]
[1747921030250,0.34489479,111050.0,111040.0,0.004]
[1747921030496,1.19992427,111050.0,111040.0,0.004]
[1747921030694,0.24124406,111030.0,111020.0,0.002]
[1747921030932,0.64988962,111030.0,111020.0,0.00215222]
[1747921031158,0.66443047,111030.0,111020.0,0.00215222]
[1747921031368,0.76833234,111030.0,111020.0,0.00215222]
[1747921031830,0.77833234,111030.0,111020.0,0.00215222]
[1747921032048,1.06681614,111030.0,111020.0,0.00215222]
[1747921032717,1.06881614,111030.0,111020.0,0.00215222]
[1747921032968,0.70577427,111030.0,111020.0,0.00215222]
[1747921033206,0.67487427,111030.0,111020.0,0.00215222]
[1747921033429,0.66033342,111030.0,111020.0,0.00215222]
[1747921033653,0.29813342,111030.0,111020.0,0.00215222]
[1747921034118,0.33477427,111030.0,111020.0,0.00215222]
[1747921034350,0.7458758,111030.0,111020.0,0.00215222]
[1747921034612,0.28968962,111030.0,111020.0,0.00215222]
[1747921035111,0.30423047,111030.0,111020.0,0.00215222]
[1747921036070,0.30223047,111030.0,111020.0,0.00215222]
[1747921036397,0.30223047,111030.0,111020.0,0.00315222]
[1747921036596,0.30623047,111030.0,111020.0,0.00315222]
[1747921036852,0.30623047,111030.0,111010.0,0.26988231]
[1747921036853,0.18915494,111020.0,111010.0,0.26988231]
[1747921037157,0.18915494,111020.0,111000.0,0.75575333]
[1747921037158,0.18917197,111010.0,111000.0,0.75575333]
[1747921037384,0.27871753,111010.0,111000.0,1.36579333]
[1747921037623,0.18917197,111010.0,111000.0,1.36579333]
[1747921037825,0.18917197,111010.0,111000.0,1.65969333]
[1747921038055,0.27871753,111010.0,111000.0,0.342]
[1747921038294,0.27871753,111010.0,111000.0,0.002]
[1747921038507,0.27871753,111010.0,111000.0,0.27204]
[1747921041922,0.18917197,111010.0,111000.0,0.48424]
[1747921042160,0.18917197,111010.0,111000.0,0.27204]
[1747921042392,0.18917197,111010.0,111000.0,0.17204]
[1747921042393,0.27871753,111010.0,111000.0,0.17204]
[1747921042619,0.19821547,110990.0,110980.0,0.75324]
[1747921042905,0.19821547,110990.0,110980.0,1.71045163]
[1747921044309,0.19821547,110990.0,110980.0,0.38605163]
[1747921044569,0.34710203,110990.0,110960.0,0.002]
[1747921044811,0.19832268,110930.0,110920.0,0.002]
[1747921045046,0.19832268,110930.0,110920.0,3.74296]
[1747921045281,0.01802832,110930.0,110920.0,5.29895812]
[1747921045521,0.21633199,110940.0,110930.0,0.00901469]
[1747921045744,0.20729975,110950.0,110940.0,0.5719915]
[1747921045968,0.19828717,110950.0,110940.0,4.30229542]
[1747921046203,0.19828717,110950.0,110940.0,4.30211579]
[1747921046419,0.19828717,110950.0,110940.0,4.32014314]
[1747921046650,0.21631265,110950.0,110940.0,4.4096887]
[1747921046881,0.20730007,110950.0,110940.0,4.39234658]
[1747921047091,0.20730007,110950.0,110940.0,4.41037376]
[1747921047552,0.00901241,110950.0,110940.0,4.41037344]
[1747921047788,0.18324214,110990.0,110980.0,0.34]
[1747921048064,0.18324214,110990.0,110980.0,1.66452]
[1747921048313,0.18324214,110990.0,110980.0,0.38888]
[1747921048555,0.2727877,110990.0,110980.0,0.65896]
[1747921048806,0.18324214,110990.0,110980.0,0.65896]
[1747921049018,0.18339416,110990.0,110980.0,0.659]
[1747921049265,0.19240389,110990.0,110980.0,4.57852728]
[1747921049498,0.19240389,110990.0,110980.0,4.61311665]
[1747921049756,0.00615202,110990.0,110980.0,5.07069304]
[1747921049991,0.04218982,110990.0,110980.0,5.07069304]
[1747921050219,0.01516135,110990.0,110980.0,5.07069304]
[1747921050451,0.03503764,110990.0,110980.0,5.08453397]
[1747921050684,0.02602791,110990.0,110980.0,5.09354403]
[1747921050909,0.19821555,110990.0,110980.0,4.0914]
[1747921051160,0.18919041,111000.0,110980.0,2.76303301]
[1747921051399,0.19819794,111000.0,110990.0,3.96406216]
[1747921051624,0.19819794,111000.0,110990.0,2.97940623]
[1747921051864,0.19819794,111000.0,110990.0,2.7902]
[1747921052079,0.19819794,111000.0,110990.0,3.06028]
[1747921052525,0.19819794,111000.0,110990.0,3.24047641]
[1747921052776,0.0180172,111000.0,110990.0,3.26750488]
[1747921053005,0.18227006,111010.0,110990.0,3.26750488]
[1747921053006,0.20018008,111010.0,111000.0,0.0418]
[1747921053233,0.18918902,111000.0,110990.0,0.38132556]
[1747921053456,0.0180176,111000.0,110990.0,4.00404136]
[1747921053680,0.002,111010.0,111000.0,0.24009762]
[1747921053924,0.02001525,111010.0,111000.0,4.06895586]
[1747921054147,0.20017976,111010.0,111000.0,4.39994734]
[1747921054421,0.19117197,111010.0,111000.0,1.4302]
[1747921054613,0.19117197,111010.0,111000.0,1.3902]
[1747921054843,0.002,111010.0,111000.0,1.59740622]
[1747921055066,0.20918754,111010.0,111000.0,1.58839778]
[1747921055301,0.02001557,111010.0,111000.0,1.69596038]
[1747921055534,0.21819525,111010.0,111000.0,1.5793891]
[1747921055769,0.20918811,111010.0,111000.0,1.59039786]
[1747921056238,0.01100762,111010.0,111000.0,1.60841498]
[1747921056500,0.01100762,111010.0,111000.0,1.69800054]
[1747921056682,0.20918779,111010.0,111000.0,1.57242018]
[1747921056921,0.20018008,111010.0,111000.0,1.66228]
[1747921057166,0.20018008,111010.0,111000.0,1.31104]
[1747921058963,0.20918779,111010.0,111000.0,5.57954162]
[1747921059183,0.20918779,111010.0,111000.0,5.57954178]
[1747921059398,0.20918779,111010.0,111000.0,5.381344]
[1747921059628,0.19117213,111010.0,111000.0,3.48614]
[1747921059845,0.19117213,111010.0,111000.0,1.65104]
[1747921060067,0.19117213,111010.0,111000.0,1.651]
[1747921060765,0.19117213,111010.0,111000.0,5.381304]
[1747921060986,0.19117213,111010.0,111000.0,2.6724]
[1747921061204,0.19117213,111010.0,111000.0,1.41224]
[1747921061423,0.19117213,111010.0,111000.0,1.29548]
[1747921062315,0.19117213,111010.0,111000.0,5.025784]
[1747921062541,0.002,111010.0,111000.0,5.45947778]
[1747921062766,0.18221058,111030.0,111010.0,0.19817992]
[1747921062767,0.21617562,111020.0,111010.0,0.19817992]
[1747921063029,0.00900779,111010.0,111000.0,1.96602286]
[1747921063248,0.18915502,111020.0,111010.0,0.18917197]
[1747921063482,0.19817992,111010.0,111000.0,0.34204]
[1747921063711,0.19817992,111010.0,111000.0,1.20128]
[1747921063936,0.19817992,111010.0,111000.0,1.29548]
[1747921064588,0.19817992,111010.0,111000.0,1.57488]
[1747921064806,0.19817992,111010.0,111000.0,1.40108]
[1747921065678,0.19817992,111010.0,111000.0,1.40208]
[1747921066368,0.19817992,111010.0,111000.0,1.29448]
[1747921066870,0.19817992,111010.0,111000.0,5.024784]
[1747921067099,0.19817992,111010.0,111000.0,5.55397302]
[1747921067320,0.19817992,111010.0,111000.0,5.364784]
[1747921067758,0.19817992,111010.0,111000.0,5.55397302]
[1747921068008,0.00215222,111030.0,111020.0,0.20716889]
[1747921068238,0.00215222,111030.0,111020.0,4.62801164]
[1747921068239,0.01115822,111030.0,111020.0,4.62801164]
[1747921068511,0.21830853,111030.0,111020.0,3.32340764]
[1747921068779,0.20930245,111030.0,111020.0,3.32340764]
[1747921068996,0.02016414,111030.0,111020.0,3.34142134]
[1747921069236,0.21563926,111040.0,111030.0,0.52913798]
[1747921069470,0.18219133,111050.0,111040.0,0.18912095]
[1747921069471,0.20911407,111050.0,111040.0,0.18912095]
[1747921069700,0.20911407,111050.0,111040.0,4.81811055]
[1747921069945,0.0200056,111070.0,111060.0,0.5470941]
[1747921070176,0.20667708,111090.0,111080.0,0.18905276]
[1747921070177,0.03553577,111090.0,111080.0,0.18905276]
[1747921070429,0.03568778,111090.0,111080.0,4.82704098]
[1747921070689,0.02668664,111090.0,111080.0,4.91658654]
[1747921070893,0.20000181,111110.0,111100.0,0.18901873]
[1747921071133,0.0025072,111110.0,111100.0,4.30586985]
[1747921071368,0.21598189,111120.0,111110.0,0.19800172]
[1747921071611,0.01799944,111110.0,111100.0,0.56656511]
[1747921071858,0.05158581,111130.0,111120.0,0.19798391]
[1747921072097,0.24970364,111130.0,111120.0,1.3769711]
[1747921072335,0.25870243,111130.0,111120.0,1.42070906]
[1747921072560,0.24970413,111130.0,111120.0,1.30698]
[1747921072782,0.24119046,111130.0,111120.0,1.00408]
[1747921073276,0.20703778,111090.0,111080.0,0.002]
[1747921073508,0.19803712,111090.0,111080.0,5.63806476]
[1747921073800,0.01800292,111090.0,111080.0,5.64706711]
[1747921074026,0.18901172,111120.0,111110.0,0.34899992]
[1747921074261,0.18901172,111120.0,111110.0,4.61877128]
[1747921074725,0.18901172,111120.0,111110.0,4.42976956]
[1747921074948,0.18901172,111120.0,111110.0,4.19516556]
[1747921075159,0.01799806,111120.0,111110.0,4.41670781]
[1747921075384,0.23204001,111130.0,111120.0,0.5199856]
[1747921075603,0.23219208,111130.0,111120.0,4.71954556]
[1747921075861,0.23219208,111130.0,111120.0,2.17624556]
[1747921076092,0.23219208,111130.0,111120.0,1.3642]
[1747921076319,0.23219208,111130.0,111120.0,1.22928]
[1747921076539,0.36523764,111130.0,111120.0,1.22928]
[1747921076759,0.19803704,111090.0,111080.0,0.39068]
[1747921076977,0.19803704,111090.0,111080.0,4.120984]
[1747921076978,0.18903574,111090.0,111080.0,4.120984]
[1747921077212,0.18899574,111090.0,111080.0,0.39068]
[1747921077432,0.01796284,111090.0,111080.0,5.28874232]
[1747921077659,0.20701971,111100.0,111090.0,0.1980372]
[1747921077871,0.00900017,111100.0,111090.0,4.36688734]
[1747921078092,0.20700116,111110.0,111100.0,0.5290189]
[1747921078318,0.19800156,111110.0,111100.0,1.1268]
[1747921078536,0.19800156,111110.0,111100.0,1.041]
[1747921079412,0.19900156,111110.0,111100.0,1.041]
[1747921080335,0.0099996,111110.0,111100.0,1.33756527]
[1747921080553,0.21700069,111110.0,111100.0,1.34660632]
[1747921080776,0.0279988,111110.0,111100.0,1.35560665]
[1747921081006,0.1990014,111110.0,111100.0,1.04104]
[1747921081221,0.1730014,111110.0,111100.0,1.04104]
[1747921081875,0.1730014,111110.0,111100.0,1.24805996]
[1747921082105,0.1730014,111110.0,111100.0,1.04104]
[1747921082318,0.1730014,111110.0,111100.0,1.25580437]
[1747921082542,0.002,111130.0,111100.0,1.24680356]
[1747921082775,0.03799192,111130.0,111120.0,0.54698245]
[1747921082996,0.19996617,111130.0,111120.0,3.29912]
[1747921083218,0.19996617,111130.0,111120.0,0.34]
[1747921083439,0.33291173,111130.0,111120.0,0.94372]
[1747921083656,0.33291173,111130.0,111120.0,0.87348]
[1747921084325,0.33291173,111130.0,111120.0,0.60372]
[1747921084545,0.33291173,111130.0,111100.0,4e-05]
[1747921084546,0.2411014,111110.0,111100.0,4e-05]
[1747921084771,0.2411014,111110.0,111100.0,1.21352]
[1747921085211,0.33064696,111110.0,111100.0,0.94576]
[1747921085449,0.2411014,111110.0,111100.0,1.21352]
[1747921085894,0.33064696,111110.0,111100.0,0.94376]
[1747921086136,0.33064696,111110.0,111100.0,1.21352]
[1747921086356,0.33064696,111110.0,111100.0,4e-05]
[1747921086572,0.45486498,111110.0,111100.0,4e-05]
[1747921086854,0.45486498,111110.0,111090.0,0.0005072]
[1747921086855,0.57361873,111100.0,111090.0,0.0005072]
[1747921087083,0.54357659,111090.0,111080.0,0.002]
[1747921087318,1.57871548,111090.0,111080.0,0.00149281]
[1747921087540,0.55261355,111070.0,111060.0,0.002]
[1747921087762,0.98718692,111070.0,111060.0,0.002]
[1747921088028,1.03178692,111070.0,111060.0,0.00215225]
[1747921088248,0.24160838,111050.0,111040.0,0.002]
[1747921088462,0.33115394,111050.0,111040.0,0.002]
[1747921089371,0.34569479,111050.0,111040.0,0.002]
[1747921089584,0.34869479,111050.0,111040.0,0.002]
[1747921091122,0.68869479,111050.0,111040.0,0.002]
[1747921091329,0.75057473,111050.0,111040.0,0.002]
[1747921093063,0.68869479,111050.0,111040.0,0.002]
[1747921095059,0.58174406,111030.0,111020.0,0.002]
[1747921095288,0.68583047,111030.0,111020.0,0.002]
[1747921095500,0.95571047,111030.0,111020.0,0.002]
[1747921095726,1.05523198,111030.0,111020.0,0.002]
[1747921095962,0.68583047,111030.0,111020.0,0.002]
[1747921096601,0.68883047,111030.0,111020.0,0.002]
[1747921097074,0.33428962,111030.0,111020.0,0.002]
[1747921097536,0.29068962,111030.0,111020.0,0.002]
[1747921097765,0.20114406,111030.0,111020.0,0.61231525]
[1747921098009,0.19814406,111030.0,111020.0,3.71720105]
[1747921098250,0.18009905,111050.0,111030.0,0.53814423]
[1747921098483,0.18009905,111050.0,111040.0,0.02641298]
[1747921099154,0.189104,111050.0,111040.0,2.99621298]
[1747921099381,0.189104,111050.0,111040.0,0.02641298]
[1747921099605,0.189104,111050.0,111040.0,0.34252825]
[1747921099824,0.20711243,111050.0,111040.0,0.36053953]
[1747921100078,0.20711316,111050.0,111040.0,0.36053953]
[1747921100304,0.1981087,111050.0,111040.0,0.13201298]
[1747921100549,0.207113,111050.0,111040.0,0.33914512]
[1747921100780,0.19810854,111050.0,111040.0,0.33013969]
[1747921100990,0.19810854,111050.0,111040.0,0.33914521]
[1747921101236,0.00900422,111050.0,111040.0,0.35715583]
[1747921101485,0.19809045,111060.0,111050.0,0.18910392]
[1747921101741,0.18910375,111050.0,111040.0,0.62066659]
[1747921101953,0.0090047,111050.0,111040.0,5.2339357]
[1747921102176,0.20711349,111050.0,111040.0,3.63574]
[1747921102392,0.01800916,111050.0,111040.0,4.11279198]
[1747921102607,0.2160984,111060.0,111050.0,0.189104]
[1747921102824,0.0180077,111060.0,111050.0,2.79011349]
[1747921103082,0.20709459,111060.0,111050.0,2.79011349]
[1747921103333,0.20709459,111060.0,111050.0,2.78110887]
[1747921103555,0.19809078,111060.0,111050.0,2.78110887]
[1747921103781,0.01100292,111070.0,111060.0,0.20709435]
[1747921103998,0.20022492,111070.0,111060.0,1.7679]
[1747921104202,0.20022492,111070.0,111060.0,2.30599086]
[1747921104412,0.19122192,111070.0,111060.0,2.30599103]
[1747921104639,0.18221867,111070.0,111060.0,2.1079]
[1747921104858,0.19122192,111070.0,111060.0,0.9986]
[1747921105066,0.0201583,111070.0,111060.0,4.9179908]
[1747921105277,0.20922825,111070.0,111060.0,4.92699453]
[1747921105487,0.20922825,111070.0,111060.0,4.90898683]
[1747921105721,0.191222,111070.0,111060.0,1.7933]
[1747921105992,0.1891379,111030.0,111020.0,0.002]
[1747921106207,0.18011342,111050.0,111030.0,0.01801274]
[1747921106437,0.18011342,111050.0,111040.0,0.26992]
[1747921106659,0.0090043,111050.0,111040.0,4.20735574]
[1747921106881,0.19810879,111050.0,111040.0,0.60992]
[1747921107321,0.19793767,111050.0,111040.0,0.60992]
[1747921107823,0.18912087,111040.0,111030.0,0.003]
[1747921108049,0.18912087,111040.0,111020.0,0.09154556]
[1747921108050,0.2342379,111030.0,111020.0,0.27192]
[1747921108263,0.32378346,111030.0,111020.0,0.27192]
[1747921108493,0.1891379,111030.0,111020.0,0.27192]
[1747921108714,0.19814423,111030.0,111020.0,3.78416772]
[1747921108964,0.20715023,111030.0,111020.0,3.00952738]
[1747921109196,0.19814415,111030.0,111020.0,1.60032]
[1747921109478,0.01801225,111030.0,111020.0,1.80748889]
[1747921109705,0.19812766,111040.0,111030.0,0.34]
[1747921109910,0.20713182,111040.0,111030.0,4.2594419]
[1747921110131,0.0090043,111050.0,111040.0,0.21612245]
[1747921110361,0.19106995,111070.0,111060.0,0.52908664]
[1747921110586,0.20022508,111070.0,111060.0,3.00028]
[1747921110809,0.20022508,111070.0,111060.0,2.49158]
[1747921111083,0.20022508,111070.0,111060.0,1.20968]
[1747921111527,0.20022508,111070.0,111060.0,5.1290708]
[1747921111752,0.20022508,111070.0,111060.0,1.73528]
[1747921111966,0.20022508,111070.0,111060.0,1.20968]
[1747921112177,0.20122508,111070.0,111060.0,1.45778]
[1747921112406,0.20122508,111070.0,111060.0,1.18786]
[1747921112617,0.20122508,111070.0,111060.0,1.45778]
[1747921112827,0.20122508,111070.0,111060.0,1.63786283]
[1747921112828,0.21022792,111070.0,111060.0,1.63786283]
[1747921113044,0.20122508,111070.0,111060.0,1.45778]
[1747921113291,0.20122508,111070.0,111060.0,2.38968]
[1747921113512,0.20122508,111070.0,111060.0,0.93976]
[1747921113732,0.20122508,111070.0,111060.0,1.20968]
[1747921113958,0.20122508,111070.0,111060.0,0.59976]
[1747921114188,0.33467064,111070.0,111060.0,0.86964]
[1747921114451,0.19814406,111030.0,111020.0,0.002]
[1747921114682,0.19814406,111030.0,111020.0,0.8716]
[1747921115127,0.19814406,111030.0,111020.0,3.52595494]
[1747921115348,0.1891379,111030.0,111020.0,3.3368]
[1747921115530,0.1891379,111030.0,111020.0,3.6768]
[1747921115742,0.1891379,111030.0,111020.0,1.2146]
[1747921116177,0.1891379,111030.0,111020.0,1.4019]
[1747921116426,0.1891379,111030.0,111020.0,0.60472]
[1747921116640,0.1891379,111030.0,111020.0,1.2146]
[1747921116874,0.1891379,111030.0,111020.0,0.87464]
[1747921117167,0.30038346,111030.0,111020.0,0.87464]